fUSD/lending_fUSD_20240506
["ID","MTS","AMOUNT","RATE_DAILY","PERIOD"]
[326495308,1715009455900,-968.91,0.00024657,2]
[326495309,1715009455911,-4914.11,0.00024657,2]
[326495310,1715009455920,-1706.73,0.00024657,2]
[326495311,1715009455931,-534.6,0.00024657,2]
[326495312,1715009455941,-982.01,0.00024657,2]
[326495313,1715009455951,-500.0,0.00024657,2]
[326495314,1715009455962,-4374.16,0.00024657,2]
[326495315,1715009455973,-17596.49,0.00024657,2]
[326495316,1715009455984,-760.18,0.00024657,2]
[326495317,1715009455994,-1218.05,0.00024657,2]
[326495318,1715009456005,-633.53,0.00024657,2]
[326495319,1715009456015,-633.53,0.00024657,3]
[326495320,1715009456025,-633.53,0.00024657,4]
[326495321,1715009456035,-2716.66,0.00024657,2]
[326495322,1715009456046,-1011.48843794,0.00024657,2]
[326495323,1715009456074,-633.53,0.00024657,5]
[326495324,1715009456090,-528.08,0.00024657,2]
[326495325,1715009456100,-545.11,0.00024657,2]
[326495326,1715009456110,-633.53,0.00024657,6]
[326495327,1715009456121,-633.53,0.00024657,7]
[326495328,1715009456131,-633.53,0.00024657,8]
[326495329,1715009456141,-500.0,0.00024657,2]
[326495330,1715009456150,-6285.82,0.00024657,2]
[326495331,1715009456160,-633.53,0.00024657,9]
[326495332,1715009456170,-500.0,0.00024657,2]
[326495333,1715009456181,-500.0,0.00024657,2]
[326495334,1715009456191,-633.53,0.00024657,10]
[326495335,1715009456202,-1833.36,0.00024657,2]
[326495336,1715009456212,-633.53,0.00024657,11]
[326495337,1715009456222,-633.53,0.00024657,12]
[326495338,1715009456235,-500.0,0.00024657,2]
[326495339,1715009456245,-633.53,0.00024657,13]
[326495340,1715009456255,-633.53,0.00024657,14]
[326495341,1715009456264,-633.53,0.00024657,15]
[326495342,1715009456273,-967.34,0.00024657,2]
[326495343,1715009456283,-633.53,0.00024657,16]
[326495344,1715009456293,-783.3,0.00024657,2]
[326495345,1715009456302,-633.53,0.00024657,17]
[326495346,1715009456311,-151.0,0.00024657,7]
[326495347,1715009456321,-500.0,0.00024657,2]
[326495348,1715009456330,-633.53,0.00024657,18]
[326495349,1715009456340,-151.0,0.00024657,7]
[326495350,1715009456350,-633.53,0.00024657,19]
[326495351,1715009456359,-151.0,0.00024657,7]
[326495352,1715009456369,-633.53,0.00024657,20]
[326495353,1715009456379,-633.53,0.00024657,21]
[326495354,1715009456389,-857.79,0.00024657,2]
[326495355,1715009456399,-633.53,0.00024657,21]
[326495356,1715009456409,-633.53,0.00024657,21]
[326495357,1715009456419,-2479.8,0.00024657,2]
[326495358,1715009456429,-500.0,0.00024657,2]
[326495359,1715009456439,-1359.44,0.00024657,2]
[326495360,1715009456449,-633.53,0.00024657,21]
[326495361,1715009456459,-549.85,0.00024657,2]
[326495362,1715009456468,-500.0,0.00024657,3]
[326495363,1715009456480,-633.70647343,0.00024657,21]
[326495364,1715009456490,-1565.21,0.00024657,2]
[326495365,1715009456499,-600.0,0.00024665,2]
[326495366,1715009456509,-170.411285,0.00024738,2]
[326495367,1715009456520,-21184.396021,0.00024738,2]
[326495368,1715009456530,-189.398626,0.00024738,2]
[326495369,1715009456541,-1799.032508,0.00024738,2]
[326495370,1715009456551,-1133.378369,0.00024738,2]
[326495371,1715009456561,-757.594501,0.00024738,2]
[326495372,1715009456571,-226.675674,0.00024738,2]
[326495373,1715009456581,-564.04,0.00024789,21]
[326495374,1715009456591,-564.04,0.00024789,21]
[326495375,1715009456602,-564.04,0.00024789,21]
[326495376,1715009456612,-564.04,0.00024789,21]
[326495377,1715009456625,-564.22470056,0.00024789,21]
[326495378,1715009456637,-3218.42,0.00024789,19]
[326495379,1715009456648,-37236.361081,0.0002479,2]
[326495380,1715009456856,-1858.813841,0.0002479,2]
[326495381,1715009456890,-969.0,0.000248,8]
[326495382,1715009456900,-169.37,0.000248,2]
[326495383,1715009456910,-3218.42,0.00024899,20]
[326495384,1715009456919,-130563.98420981,0.000249,5]
[326495385,1715009459732,-500.0,0.00024657,4]
[326495386,1715009459741,-500.0,0.00024657,5]
[326495387,1715009459750,-827.82,0.00024657,2]
[326495388,1715009459760,-500.0,0.00024657,2]
[326495389,1715009459772,-500.0,0.00024657,6]
[326495390,1715009459862,-1669.69,0.00024657,2]
[326495391,1715009459871,-500.0,0.00024657,7]
[326495392,1715009459881,-500.0,0.00024657,8]
[326495393,1715009459903,-34136.32258876,0.000249,5]
[326495394,1715009459913,-70214.0155171,0.000249,5]
[326495395,1715009459923,-2030.0427002,0.00024914,2]
[326495396,1715009459932,-464.1389861,0.00024914,2]
[326495397,1715009459941,-13371.2615479,0.00024914,2]
[326495398,1715009459952,-943.5908701,0.00024914,2]
[326495399,1715009459961,-944.8028887,0.00024914,2]
[326495400,1715009459970,-3410.9768678,0.00024914,2]
[326495401,1715009459980,-3218.42,0.0002493,21]
[326495402,1715009459989,-3218.42,0.0002493,21]
[326495403,1715009459999,-500.0,0.00024931,3]
[326495404,1715009460008,-500.0,0.00024931,3]
[326495405,1715009460017,-769.68,0.00024931,3]
[326495406,1715009460026,-1840.62,0.00024931,3]
[326495407,1715009460036,-500.0,0.00024931,3]
[326495408,1715009460045,-994.94,0.00024931,3]
[326495409,1715009460054,-500.0,0.00024931,3]
[326495410,1715009460064,-798.91,0.00024931,3]
[326495411,1715009460073,-506.37,0.00024931,3]
[326495412,1715009460082,-200.0,0.00024931,3]
[326495413,1715009460091,-533.57,0.00024931,3]
[326495414,1715009460101,-1395.39,0.00024931,3]
[326495415,1715009460110,-582.73,0.00024931,3]
[326495416,1715009460119,-570.6,0.00024931,3]
[326495417,1715009460128,-670.25,0.00024931,3]
[326495418,1715009460137,-2515.34,0.00024931,3]
[326495419,1715009460146,-1320.69,0.00024931,3]
[326495420,1715009460162,-500.0,0.00024931,3]
[326495421,1715009460193,-500.0,0.00024931,3]
[326495422,1715009460202,-610.51,0.00024931,3]
[326495423,1715009460212,-1710.54,0.00024931,3]
[326495424,1715009460221,-561.35,0.00024931,3]
[326495425,1715009460232,-500.0,0.00024931,3]
[326495426,1715009460242,-500.0,0.00024931,3]
[326495427,1715009460252,-824.5,0.00024931,3]
[326495428,1715009460261,-606.88,0.00024931,3]
[326495429,1715009460270,-500.0,0.00024931,3]
[326495430,1715009460278,-1149.21,0.00024931,3]
[326495431,1715009460288,-500.0,0.00024931,3]
[326495432,1715009460297,-500.0,0.00024931,3]
[326495433,1715009460313,-938.31,0.00024931,3]
[326495434,1715009460323,-625.3,0.00024931,3]
[326495435,1715009460332,-1216.27,0.00024931,3]
[326495436,1715009460342,-561.17,0.00024931,3]
[326495437,1715009460351,-1672.06,0.00024931,3]
[326495438,1715009460361,-500.0,0.00024931,3]
[326495439,1715009460371,-500.0,0.00024931,3]
[326495440,1715009460382,-500.0,0.00024931,3]
[326495441,1715009460392,-793.06,0.00024931,3]
[326495442,1715009460402,-500.0,0.00024931,3]
[326495443,1715009460412,-1103.72,0.00024931,3]
[326495444,1715009460421,-1292.01,0.00024931,3]
[326495445,1715009460432,-500.0,0.00024931,3]
[326495446,1715009460442,-757.91,0.00024931,3]
[326495447,1715009460453,-500.0,0.00024931,3]
[326495448,1715009460464,-500.0,0.00024931,3]
[326495449,1715009460474,-558.78,0.00024931,3]
[326495450,1715009460492,-504.58,0.00024931,3]
[326495451,1715009460503,-861.74,0.00024931,3]
[326495452,1715009460514,-500.0,0.00024931,3]
[326495453,1715009460524,-500.0,0.00024931,3]
[326495454,1715009460534,-1023.77,0.00024931,3]
[326495455,1715009460544,-963.88,0.00024931,2]
[326495456,1715009460555,-500.0,0.00024931,3]
[326495457,1715009460565,-500.0,0.00024931,3]
[326495458,1715009460575,-766.91,0.00024931,3]
[326495459,1715009460586,-500.0,0.00024931,3]
[326495460,1715009460597,-500.0,0.00024931,3]
[326495461,1715009460607,-500.0,0.00024931,3]
[326495462,1715009460618,-1022.53,0.00024931,3]
[326495463,1715009460628,-848.02,0.00024931,3]
[326495464,1715009460638,-1153.71,0.00024931,3]
[326495465,1715009460649,-500.0,0.00024931,3]
[326495466,1715009460659,-500.0,0.00024931,3]
[326495467,1715009460670,-1178.81,0.00024931,3]
[326495468,1715009460682,-596.69,0.00024931,3]
[326495469,1715009460692,-846.09,0.00024931,3]
[326495470,1715009460703,-500.0,0.00024931,3]
[326495471,1715009460714,-709.43,0.00024931,3]
[326495472,1715009460724,-683.6,0.00024931,3]
[326495473,1715009460739,-1087.36,0.00024931,3]
[326495474,1715009460749,-1009.77,0.00024931,3]
[326495475,1715009460759,-500.0,0.00024931,3]
[326495476,1715009460773,-500.0,0.00024931,3]
[326495477,1715009460783,-605.45,0.00024931,3]
[326495478,1715009460794,-500.0,0.00024931,3]
[326495479,1715009460806,-666.22,0.00024931,3]
[326495480,1715009460816,-500.0,0.00024931,3]
[326495481,1715009460829,-500.0,0.00024931,3]
[326495482,1715009460840,-500.0,0.00024931,3]
[326495483,1715009460851,-1015.82,0.00024931,3]
[326495484,1715009460866,-773.12,0.00024931,3]
[326495485,1715009460876,-885.32,0.00024931,3]
[326495486,1715009460887,-500.0,0.00024931,3]
[326495487,1715009460898,-1066.8,0.00024931,3]
[326495488,1715009460909,-500.0,0.00024931,3]
[326495489,1715009460920,-1733.47,0.00024931,3]
[326495490,1715009460931,-661.74,0.00024931,3]
[326495491,1715009460942,-500.0,0.00024931,3]
[326495492,1715009460953,-859.01,0.00024931,3]
[326495493,1715009460964,-500.0,0.00024931,3]
[326495494,1715009460975,-500.0,0.00024931,3]
[326495495,1715009460989,-911.16,0.00024931,3]
[326495496,1715009461000,-1130.21,0.00024931,3]
[326495497,1715009461012,-500.0,0.00024931,3]
[326495498,1715009461024,-811.36,0.00024931,3]
[326495499,1715009461035,-500.0,0.00024931,3]
[326495500,1715009461046,-500.0,0.00024931,3]
[326495501,1715009461056,-500.0,0.00024931,3]
[326495502,1715009461067,-705.39,0.00024931,3]
[326495503,1715009461078,-500.0,0.00024931,3]
[326495504,1715009461088,-500.0,0.00024931,3]
[326495505,1715009461098,-500.0,0.00024931,3]
[326495506,1715009461110,-528.36107125,0.00024931,3]
[326495507,1715009461120,-932.34,0.00024931,3]
[326495508,1715009461131,-500.0,0.00024931,3]
[326495509,1715009461142,-500.0,0.00024931,3]
[326495510,1715009461153,-500.0,0.00024931,3]
[326495511,1715009461166,-1431.67,0.00024931,3]
[326495512,1715009461177,-700.06,0.00024931,3]
[326495513,1715009461187,-749.39,0.00024931,3]
[326495514,1715009461198,-500.0,0.00024931,3]
[326495515,1715009461209,-767.02,0.00024931,3]
[326495516,1715009461220,-1186.32,0.00024931,3]
[326495517,1715009461232,-1083.13,0.00024931,3]
[326495518,1715009461247,-500.0,0.00024931,3]
[326495519,1715009461268,-659.71,0.00024931,3]
[326495520,1715009461280,-863.45,0.00024931,3]
[326495521,1715009461294,-571.63,0.00024931,3]
[326495522,1715009461304,-500.0,0.00024931,3]
[326495523,1715009461315,-801.67,0.00024931,3]
[326495524,1715009461327,-1890.91,0.00024931,3]
[326495525,1715009461337,-653.74,0.00024931,3]
[326495526,1715009461350,-961.58,0.00024931,3]
[326495527,1715009461361,-500.0,0.00024931,3]
[326495528,1715009461372,-500.0,0.00024931,3]
[326495529,1715009461383,-500.0,0.00024931,3]
[326495530,1715009461394,-211.2375366,0.00024931,3]
[326495531,1715009461404,-872.26,0.00024931,3]
[326495532,1715009461415,-512.98,0.00024931,3]
[326495533,1715009461426,-1099.89,0.00024931,3]
[326495534,1715009461436,-502.64,0.00024931,3]
[326495535,1715009461447,-584.09,0.00024931,3]
[326495536,1715009461458,-500.0,0.00024931,3]
[326495537,1715009461469,-1218.65,0.00024931,3]
[326495538,1715009461481,-950.18,0.00024931,3]
[326495539,1715009461493,-658.39,0.00024931,3]
[326495540,1715009461503,-1865.45,0.00024931,3]
[326495541,1715009461514,-585.65,0.00024931,3]
[326495542,1715009461525,-500.0,0.00024931,3]
[326495543,1715009461536,-685.57,0.00024931,3]
[326495544,1715009461546,-606.07,0.00024931,3]
[326495545,1715009461557,-500.0,0.00024931,3]
[326495546,1715009461567,-500.0,0.00024931,3]
[326495547,1715009461578,-500.0,0.00024931,3]
[326495548,1715009461588,-1273.33,0.00024931,3]
[326495549,1715009461599,-500.0,0.00024931,3]
[326495550,1715009461610,-1023.23,0.00024931,3]
[326495551,1715009461621,-500.0,0.00024931,3]
[326495552,1715009461631,-667.2,0.00024931,3]
[326495553,1715009461642,-512.57,0.00024931,3]
[326495554,1715009461653,-500.0,0.00024931,3]
[326495555,1715009461664,-1152.8,0.00024931,3]
[326495556,1715009461675,-500.0,0.00024931,3]
[326495557,1715009461685,-500.0,0.00024931,3]
[326495558,1715009461696,-500.0,0.00024931,3]
[326495559,1715009461706,-823.83,0.00024931,3]
[326495560,1715009461717,-999.36,0.00024931,3]
[326495561,1715009461730,-500.0,0.00024931,3]
[326495562,1715009461743,-731.34,0.00024931,3]
[326495563,1715009461754,-1085.03,0.00024931,3]
[326495564,1715009461769,-1504.18,0.00024931,3]
[326495565,1715009461780,-500.0,0.00024931,3]
[326495566,1715009461790,-1191.46,0.00024931,3]
[326495567,1715009461801,-1258.68,0.00024931,3]
[326495568,1715009461812,-829.17,0.00024931,3]
[326495569,1715009461824,-828.7,0.00024931,3]
[326495570,1715009461834,-1268.18,0.00024931,3]
[326495571,1715009461845,-500.0,0.00024931,3]
[326495572,1715009461855,-500.0,0.00024931,3]
[326495573,1715009461866,-1173.62,0.00024931,3]
[326495574,1715009461877,-500.0,0.00024931,3]
[326495575,1715009461888,-500.0,0.00024931,3]
[326495576,1715009461901,-2312.7,0.00024931,3]
[326495577,1715009461917,-500.0,0.00024931,3]
[326495578,1715009461935,-1242.11,0.00024931,3]
[326495579,1715009461947,-500.0,0.00024931,3]
[326495580,1715009461962,-1015.72,0.00024931,3]
[326495581,1715009461980,-1195.8,0.00024931,3]
[326495582,1715009461995,-508.40337964,0.00024931,3]
[326495583,1715009462011,-500.0,0.00024931,3]
[326495584,1715009462027,-500.0,0.00024931,3]
[326495585,1715009462041,-500.0,0.00024931,3]
[326495586,1715009462056,-1102.49,0.00024931,3]
[326495587,1715009462072,-500.0,0.00024931,3]
[326495588,1715009462084,-500.0,0.00024931,3]
[326495589,1715009462098,-500.0,0.00024931,3]
[326495590,1715009462112,-500.0,0.00024931,3]
[326495591,1715009462127,-500.0,0.00024931,3]
[326495592,1715009462143,-653.47,0.00024931,3]
[326495593,1715009462160,-1188.97,0.00024931,3]
[326495594,1715009462176,-1414.06,0.00024931,3]
[326495595,1715009462188,-1137.47,0.00024931,3]
[326495596,1715009462201,-500.0,0.00024931,3]
[326495597,1715009462223,-561.2,0.00024931,3]
[326495598,1715009462239,-720.29,0.00024931,3]
[326495599,1715009462253,-307.91255844,0.00024931,3]
[326495600,1715009462270,-616.26,0.00024931,3]
[326495601,1715009462283,-500.0,0.00024931,3]
[326495602,1715009462295,-923.54,0.00024931,3]
[326495603,1715009462309,-680.79,0.00024931,3]
[326495604,1715009462322,-725.5,0.00024931,3]
[326495605,1715009462335,-682.14,0.00024931,3]
[326495606,1715009462347,-1768.76,0.00024931,3]
[326495607,1715009462365,-1143.37,0.00024931,3]
[326495608,1715009462378,-500.0,0.00024931,3]
[326495609,1715009462392,-1667.98,0.00024931,3]
[326495610,1715009462405,-500.0,0.00024931,3]
[326495611,1715009462418,-583.51921022,0.00024931,3]
[326495612,1715009462432,-518.34,0.00024931,3]
[326495613,1715009462445,-500.0,0.00024931,3]
[326495614,1715009462459,-500.0,0.00024931,3]
[326495615,1715009462473,-500.0,0.00024931,3]
[326495616,1715009462489,-500.0,0.00024931,3]
[326495617,1715009462503,-762.11,0.00024931,3]
[326495618,1715009462516,-500.0,0.00024931,3]
[326495619,1715009462530,-500.0,0.00024931,3]
[326495620,1715009462543,-500.0,0.00024931,3]
[326495621,1715009462557,-516.76495267,0.00024931,2]
[326495622,1715009462569,-794.05,0.00024931,3]
[326495623,1715009462582,-533.1,0.00024931,3]
[326495624,1715009462595,-500.0,0.00024931,3]
[326495625,1715009462609,-500.0,0.00024931,3]
[326495626,1715009462621,-1008.18,0.00024931,3]
[326495627,1715009462635,-500.0,0.00024931,3]
[326495628,1715009462649,-500.0,0.00024931,3]
[326495629,1715009462662,-1503.41,0.00024931,3]
[326495630,1715009462675,-500.0,0.00024931,3]
[326495631,1715009462687,-510.49,0.00024931,3]
[326495632,1715009462701,-736.54,0.00024931,3]
[326495633,1715009462713,-500.0,0.00024931,3]
[326495634,1715009462727,-565.5,0.00024931,3]
[326495635,1715009462741,-500.0,0.00024931,3]
[326495636,1715009462754,-500.0,0.00024931,3]
[326495637,1715009462771,-500.0,0.00024931,3]
[326495638,1715009462784,-1400.66,0.00024931,3]
[326495639,1715009462797,-500.0,0.00024931,3]
[326495640,1715009462811,-500.0,0.00024931,3]
[326495641,1715009462824,-500.0,0.00024931,3]
[326495642,1715009462838,-1644.54,0.00024931,3]
[326495643,1715009462852,-1912.03,0.00024931,3]
[326495644,1715009462866,-500.0,0.00024931,3]
[326495645,1715009462879,-500.0,0.00024931,3]
[326495646,1715009462892,-655.28,0.00024931,3]
[326495647,1715009462906,-500.0,0.00024931,3]
[326495648,1715009462919,-713.17,0.00024931,3]
[326495649,1715009462932,-500.0,0.00024931,3]
[326495650,1715009462945,-2344.78,0.00024931,3]
[326495651,1715009462959,-1420.44,0.00024931,3]
[326495652,1715009462972,-2190.6,0.00024931,3]
[326495653,1715009462988,-1574.93,0.00024931,3]
[326495654,1715009463001,-500.0,0.00024931,3]
[326495655,1715009463014,-178.24022724,0.00024931,3]
[326495656,1715009463027,-500.0,0.00024931,3]
[326495657,1715009463040,-573.7,0.00024931,3]
[326495658,1715009463053,-1955.19,0.00024931,3]
[326495659,1715009463067,-1023.72,0.00024931,3]
[326495660,1715009463079,-557.66,0.00024931,3]
[326495661,1715009463092,-997.83,0.00024931,3]
[326495662,1715009463106,-525.55,0.00024931,3]
[326495663,1715009463118,-1896.66,0.00024931,3]
[326495664,1715009463131,-500.0,0.00024931,3]
[326495665,1715009463143,-1816.67,0.00024931,3]
[326495666,1715009463157,-500.0,0.00024931,3]
[326495667,1715009463170,-500.0,0.00024931,3]
[326495668,1715009463182,-500.0,0.00024931,3]
[326495669,1715009463195,-1352.3,0.00024931,3]
[326495670,1715009463208,-1391.1,0.00024931,3]
[326495671,1715009463220,-1707.62,0.00024931,3]
[326495672,1715009463232,-766.8,0.00024931,3]
[326495673,1715009463243,-1194.6,0.00024931,3]
[326495674,1715009463256,-648.26,0.00024931,3]
[326495675,1715009463268,-1321.73,0.00024931,3]
[326495676,1715009463281,-500.0,0.00024931,3]
[326495677,1715009463294,-500.0,0.00024931,3]
[326495678,1715009463306,-500.0,0.00024931,3]
[326495679,1715009463319,-500.0,0.00024931,3]
[326495680,1715009463332,-1270.81,0.00024931,3]
[326495681,1715009463345,-500.0,0.00024931,3]
[326495682,1715009463358,-521.21,0.00024931,3]
[326495683,1715009463372,-708.11,0.00024931,3]
[326495684,1715009463386,-1129.74,0.00024931,3]
[326495685,1715009463401,-989.92,0.00024931,3]
[326495686,1715009463414,-500.0,0.00024931,3]
[326495687,1715009463427,-500.0,0.00024931,3]
[326495688,1715009463440,-500.0,0.00024931,3]
[326495689,1715009463453,-936.25,0.00024931,3]
[326495690,1715009463467,-500.0,0.00024931,3]
[326495691,1715009463482,-553.87,0.00024931,3]
[326495692,1715009463495,-1963.0,0.00024931,3]
[326495693,1715009463508,-946.3,0.00024931,3]
[326495694,1715009463521,-1073.3,0.00024931,3]
[326495695,1715009463535,-1097.27,0.00024931,3]
[326495696,1715009463549,-500.0,0.00024931,3]
[326495697,1715009463561,-500.0,0.00024931,3]
[326495698,1715009463575,-797.87,0.00024931,3]
[326495699,1715009463588,-688.65,0.00024931,3]
[326495700,1715009463601,-1744.5,0.00024931,3]
[326495701,1715009463614,-1285.63,0.00024931,3]
[326495702,1715009463628,-1410.99,0.00024931,3]
[326495703,1715009463641,-500.0,0.00024931,3]
[326495704,1715009463653,-500.0,0.00024931,3]
[326495705,1715009463667,-640.4,0.00024931,3]
[326495706,1715009463680,-973.55,0.00024931,3]
[326495707,1715009463692,-500.0,0.00024931,3]
[326495708,1715009463706,-1317.55,0.00024931,3]
[326495709,1715009463718,-628.92,0.00024931,3]
[326495710,1715009463732,-500.0,0.00024931,3]
[326495711,1715009463744,-543.14059726,0.00024931,3]
[326495712,1715009463758,-500.0,0.00024931,3]
[326495713,1715009463775,-605.04,0.00024931,3]
[326495714,1715009463788,-659.35,0.00024931,3]
[326495715,1715009463802,-220.7,0.00024931,3]
[326495716,1715009463814,-1265.18,0.00024931,3]
[326495717,1715009463828,-500.0,0.00024931,3]
[326495718,1715009463842,-500.0,0.00024931,3]
[326495719,1715009463855,-1161.66,0.00024931,3]
[326495720,1715009463869,-1571.11,0.00024931,3]
[326495721,1715009463881,-705.26,0.00024931,3]
[326495722,1715009463894,-500.0,0.00024931,3]
[326495723,1715009463907,-504.66607582,0.00024931,3]
[326495724,1715009463920,-205.60215435,0.00024931,3]
[326495725,1715009463933,-879.88,0.00024931,3]
[326495726,1715009463945,-1058.68,0.00024931,3]
[326495727,1715009463960,-1272.13,0.00024931,3]
[326495728,1715009463983,-812.5,0.00024931,3]
[326495729,1715009463996,-500.0,0.00024931,3]
[326495730,1715009464009,-574.27,0.00024931,3]
[326495731,1715009464022,-1241.72,0.00024931,3]
[326495732,1715009464034,-1077.12,0.00024931,3]
[326495733,1715009464047,-500.0,0.00024931,3]
[326495734,1715009464060,-2261.22,0.00024931,3]
[326495735,1715009464071,-500.0,0.00024931,3]
[326495736,1715009464081,-718.28,0.00024931,3]
[326495737,1715009464091,-1834.15,0.00024931,3]
[326495738,1715009464101,-1337.7,0.00024931,3]
[326495739,1715009464110,-1314.63,0.00024931,3]
[326495740,1715009464120,-506.02,0.00024931,3]
[326495741,1715009464130,-593.54,0.00024931,3]
[326495742,1715009464140,-1326.88,0.00024931,3]
[326495743,1715009464150,-2552.83,0.00024931,3]
[326495744,1715009464159,-500.0,0.00024931,3]
[326495745,1715009464169,-538.76333556,0.00024931,3]
[326495746,1715009464179,-1084.01,0.00024931,3]
[326495747,1715009464189,-670.56,0.00024931,3]
[326495748,1715009464199,-554.6,0.00024931,3]
[326495749,1715009464208,-1373.27,0.00024931,3]
[326495750,1715009464219,-500.0,0.00024931,3]
[326495751,1715009464228,-3000.0,0.00024931,3]
[326495752,1715009464240,-1139.32,0.00024931,3]
[326495753,1715009464250,-994.66,0.00024931,3]
[326495754,1715009464261,-500.0,0.00024931,3]
[326495755,1715009464271,-2128.88,0.00024931,3]
[326495756,1715009464281,-549.74,0.00024931,3]
[326495757,1715009464321,-1465.55,0.00024931,3]
[326495758,1715009464346,-890.02,0.00024931,3]
[326495759,1715009464421,-2846.98,0.00024931,3]
[326495760,1715009464498,-1932.04,0.00024931,3]
[326495761,1715009464509,-1124.82,0.00024931,3]
[326495762,1715009464519,-1819.88,0.00024931,3]
[326495763,1715009464529,-500.0,0.00024931,3]
[326495764,1715009464958,-2178.06,0.00024931,3]
[326495765,1715009464983,-837.75,0.00024931,3]
[326495766,1715009465004,-772.42,0.00024931,3]
[326495767,1715009465014,-1572.83,0.00024931,3]
[326495768,1715009465025,-652.45,0.00024931,3]
[326495769,1715009465035,-500.0,0.00024931,3]
[326495770,1715009465046,-500.0,0.00024931,3]
[326495771,1715009465056,-620.62,0.00024931,3]
[326495772,1715009465067,-1891.22,0.00024931,3]
[326495773,1715009465077,-2017.32,0.00024931,3]
[326495774,1715009465087,-1123.67,0.00024931,3]
[326495775,1715009465097,-1112.26,0.00024931,3]
[326495776,1715009465106,-579.7,0.00024931,3]
[326495777,1715009465116,-963.92,0.00024931,3]
[326495778,1715009465126,-500.0,0.00024931,3]
[326495779,1715009465136,-751.76,0.00024931,3]
[326495780,1715009465145,-1479.04,0.00024931,3]
[326495781,1715009465157,-500.0,0.00024931,3]
[326495782,1715009465167,-2922.7,0.00024931,3]
[326495783,1715009465177,-645.61,0.00024931,3]
[326495784,1715009465187,-2260.98,0.00024931,3]
[326495785,1715009465196,-736.11,0.00024931,3]
[326495786,1715009465207,-1817.46,0.00024931,3]
[326495787,1715009465217,-1628.53,0.00024931,3]
[326495788,1715009465227,-500.0,0.00024931,3]
[326495789,1715009465239,-500.0,0.00024931,3]
[326495790,1715009465249,-500.0,0.00024931,3]
[326495791,1715009465259,-960.36,0.00024931,3]
[326495792,1715009465269,-500.0,0.00024931,3]
[326495793,1715009465278,-1199.63,0.00024931,3]
[326495794,1715009465288,-500.0,0.00024931,3]
[326495795,1715009465298,-500.0,0.00024931,3]
[326495796,1715009465308,-1796.92,0.00024931,3]
[326495797,1715009465318,-1517.46,0.00024931,3]
[326495798,1715009465328,-500.0,0.00024931,3]
[326495799,1715009465337,-500.0,0.00024931,3]
[326495800,1715009465347,-500.0,0.00024931,3]
[326495801,1715009465356,-2510.07,0.00024931,2]
[326495802,1715009465368,-1231.39,0.00024931,3]
[326495803,1715009465378,-1455.58,0.00024931,3]
[326495804,1715009465388,-500.0,0.00024931,3]
[326495805,1715009465400,-589.42,0.00024931,3]
[326495806,1715009465411,-421.5670358,0.00024931,3]
[326495807,1715009465422,-1574.83,0.00024931,3]